bitfinex/quotes_SOLUSD_20250518
["timestamp","ask_amount","ask_price","bid_price","bid_amount"]
[1747595419720,21.12633192,170.34,170.3,20.34]
[1747595422308,5.87091286,170.34,170.3,20.34]
[1747595422521,34.99436719,170.37,170.3,20.34]
[1747595422522,5.8703552,170.35,170.3,20.34]
[1747595426813,21.12577426,170.35,170.28,26.0]
[1747595427208,15.25541906,170.33,170.28,26.0]
[1747595427727,15.25541906,170.32,170.25,26.21368548]
[1747595427936,15.25541906,170.32,170.25,52.21368548]
[1747595428317,15.25541906,170.33,170.25,52.21368548]
[1747595428720,5.87130108,170.32,170.25,26.21368548]
[1747595428902,15.25541906,170.31,170.25,20.34]
[1747595429108,15.25541906,170.31,170.25,26.2137052]
[1747595429501,15.25541906,170.31,170.25,52.2137052]
[1747595429703,21.12672014,170.32,170.25,52.2137052]
[1747595430824,21.12672014,170.32,170.25,46.34]
[1747595431021,15.25541906,170.31,170.25,46.34]
[1747595431200,21.12672014,170.32,170.25,52.21369801]
[1747595431519,5.87130108,170.32,170.25,52.21369801]
[1747595431734,5.8709648,170.33,170.25,52.21369801]
[1747595432100,5.87069751,170.34,170.26,18.64964886]
[1747595432427,143.24698891,170.35,170.29,26.0]
[1747595433017,15.25541906,170.33,170.25,20.34]
[1747595433224,15.25541906,170.34,170.25,26.21364793]
[1747595433409,15.25541906,170.33,170.26,26.0]
[1747595433829,15.25541906,170.34,170.26,26.0]
[1747595434530,5.87095637,170.33,170.27,5.87302519]
[1747595434829,152.6320422,170.35,170.27,24.52267405]
[1747595435035,137.37662314,170.35,170.27,24.52267405]
[1747595435831,143.24697238,170.35,170.27,24.52267405]
[1747595436126,158.50239144,170.35,170.27,24.52267405]
[1747595436330,15.25541906,170.34,170.26,31.87333108]
[1747595436625,15.25541906,170.33,170.25,26.21362002]
[1747595436825,15.25541906,170.33,170.25,52.21362002]
[1747595437022,15.25541906,170.33,170.25,26.21362002]
[1747595437448,15.25541906,170.33,170.25,52.21362002]
[1747595437730,5.87130108,170.32,170.25,52.21362002]
[1747595440820,15.25541906,170.31,170.25,46.34]
[1747595441426,15.25541906,170.3,170.25,46.34]
[1747595441627,15.25541906,170.29,170.24,26.0]
[1747595442544,20.28,170.31,170.24,26.0]
[1747595442709,5.87233542,170.29,170.24,26.0]
[1747595442915,21.12775448,170.29,170.24,26.0]
[1747595443236,15.25541906,170.27,170.17,221.3176]
[1747595443410,15.25541906,170.26,170.17,241.6176]
[1747595443713,15.25541906,170.26,170.2,26.0]
[1747595443905,15.25541906,170.26,170.17,247.49398]
[1747595444111,15.25541906,170.25,170.17,247.49398]
[1747595444323,15.25541906,170.24,170.17,239.96]
[1747595444635,15.25541906,170.24,170.17,20.3]
[1747595444932,5.87440521,170.23,170.17,20.3]
[1747595445417,37.10061906,170.25,170.17,26.17638531]
[1747595445730,137.37662314,170.27,170.2,26.0]
[1747595445933,137.37662314,170.27,170.22,26.0]
[1747595446633,137.37662314,170.27,170.22,27.5989]
[1747595447048,137.37662314,170.27,170.23,5.87440521]
[1747595447347,137.37662314,170.3,170.23,5.87440521]
[1747595447726,143.24866487,170.3,170.23,5.87440521]
[1747595448051,158.50408393,170.3,170.22,7.47362986]
[1747595448715,143.24866487,170.3,170.22,7.47362986]
[1747595449842,158.50408393,170.3,170.22,7.47362986]
[1747595450719,143.24866487,170.3,170.22,7.47362986]
[1747595451342,137.37662314,170.3,170.22,7.47362986]
[1747595451541,143.24872327,170.3,170.22,7.47362986]
[1747595453540,158.50414233,170.3,170.22,7.47362986]
[1747595455541,143.2490531,170.29,170.22,7.47362986]
[1747595456043,143.2490531,170.29,170.21,31.87498817]
[1747595456433,15.25541906,170.27,170.18,1.5547]
[1747595456626,1.6414,170.28,170.2,26.0]
[1747595456627,15.25541906,170.26,170.2,26.0]
[1747595457247,15.25541906,170.24,170.17,20.3]
[1747595457418,21.12970483,170.24,170.17,52.17639717]
[1747595457744,5.87428577,170.24,170.17,52.17639717]
[1747595459047,15.25541906,170.22,170.17,46.3]
[1747595459355,15.25541906,170.22,170.16,26.0]
[1747595460427,15.25541906,170.2,170.15,26.0]
[1747595460736,15.25541906,170.19,170.12,26.17811696]
[1747595460935,5.87647646,170.17,170.12,46.3]
[1747595461139,15.25541906,170.19,170.12,52.17812631]
[1747595461636,21.13085971,170.2,170.12,52.17812631]
[1747595462958,15.25541906,170.19,170.12,52.17812631]
[1747595463854,21.13137087,170.19,170.12,52.17812631]
[1747595465550,21.13085971,170.2,170.12,52.17812631]
[1747595466142,15.25541906,170.2,170.12,52.17812631]
[1747595466452,158.50720247,170.21,170.12,52.17812631]
[1747595468459,15.25541906,170.19,170.12,46.3]
[1747595468634,15.25541906,170.17,170.12,46.3]
[1747595469035,15.25541906,170.17,170.12,26.0]
[1747595469551,20.24,170.2,170.12,31.8781941]
[1747595469757,35.49541906,170.2,170.12,31.8781941]
[1747595470056,178.74720247,170.21,170.12,31.8781941]
[1747595470252,15.25541906,170.19,170.12,26.0]
[1747595470449,5.87647646,170.17,170.12,26.0]
[1747595470655,5.87647646,170.17,170.1,5.87862965]
[1747595471345,21.13189552,170.17,170.09,31.87917005]
[1747595471661,137.37662314,170.18,170.09,31.87917005]
[1747595471837,158.50828617,170.18,170.09,31.87917005]
[1747595472238,143.25286711,170.18,170.09,31.87917005]
[1747595472753,137.37662314,170.18,170.13,26.0]
[1747595473143,163.4914756,170.22,170.13,26.0]
[1747595473457,137.37662314,170.22,170.14,18.64964886]
[1747595473661,5.87414969,170.24,170.14,18.64964886]
[1747595473962,157.61662314,170.25,170.17,26.0]
[1747595474461,15.25541906,170.24,170.15,26.0]
[1747595474974,5.87440521,170.23,170.15,31.87704904]
[1747595475557,21.12982427,170.23,170.15,26.0]
[1747595475769,21.12982427,170.23,170.14,5.87740947]
[1747595477474,15.25541906,170.2,170.13,26.0]
[1747595477651,15.25541906,170.19,170.09,27.7741]
[1747595477833,15.25541906,170.21,170.11,26.0]
[1747595478037,15.25541906,170.21,170.13,26.0]
[1747595478237,15.25541906,170.2,170.13,26.0]
[1747595479467,15.25541906,170.2,170.1,24.52845667]
[1747595479468,5.87578588,170.19,170.1,24.52845667]
[1747595479768,5.87578588,170.19,170.13,26.0]
[1747595480744,21.13120494,170.19,170.11,26.0]
[1747595480972,15.25541906,170.18,170.11,26.0]
[1747595481868,5.87578588,170.19,170.11,31.87826755]
[1747595482444,143.25240902,170.19,170.11,31.87826755]
[1747595482772,158.50782808,170.19,170.11,31.87826755]
[1747595482944,143.25240902,170.19,170.11,31.87826755]
[1747595485146,137.37662314,170.19,170.12,18.64964886]
[1747595486273,143.25243284,170.19,170.12,18.64964886]
[1747595486651,137.37662314,170.19,170.12,18.64964886]
[1747595487573,143.25241358,170.19,170.13,5.8778581]
[1747595492458,137.37662314,170.19,170.13,5.8778581]
[1747595493273,137.37662314,170.19,170.16,26.0]
[1747595493473,137.37662314,170.19,170.13,20.57250337]
[1747595493691,137.37662314,170.19,170.16,26.0]
[1747595494480,5.87442319,170.23,170.16,26.0]
[1747595494782,137.37662314,170.25,170.13,20.57250337]
[1747595494783,1.5797,170.26,170.2,26.0]
[1747595494959,158.5048242,170.28,170.2,26.0]
[1747595495158,143.24940514,170.28,170.2,26.0]
[1747595495583,158.5048242,170.28,170.2,31.87518072]
[1747595496385,15.25541906,170.26,170.17,18.64964886]
[1747595496571,15.25541906,170.26,170.18,26.0]
[1747595497487,5.87371512,170.25,170.18,31.87612167]
[1747595498390,21.12913418,170.25,170.18,31.8760709]
[1747595501589,21.12913418,170.25,170.18,26.0]
[1747595501787,21.12913418,170.25,170.18,31.87611908]
[1747595502362,15.25541906,170.23,170.16,26.0]
[1747595503494,15.25541906,170.23,170.16,31.87678686]
[1747595503808,5.87475032,170.22,170.16,31.87678686]
[1747595505004,15.25541906,170.23,170.16,31.87678686]
[1747595505005,5.87440521,170.23,170.16,31.87678686]
[1747595505299,143.25075324,170.24,170.16,31.87678686]
[1747595506567,158.5061723,170.24,170.16,31.87678686]
[1747595506793,15.25541906,170.23,170.16,26.0]
[1747595507796,15.25541906,170.23,170.16,31.8767746]
[1747595508000,158.5061723,170.24,170.16,31.8767746]
[1747595509193,143.25075324,170.24,170.16,31.8767746]
[1747595511073,158.5061723,170.24,170.16,31.8767746]
[1747595511269,158.5061723,170.24,170.16,26.0]
[1747595511473,15.25541906,170.22,170.16,26.0]
[1747595511990,15.25541906,170.21,170.15,26.0]
[1747595512172,15.25541906,170.21,170.12,6.479]
[1747595512568,15.25541906,170.21,170.12,32.479]
[1747595512795,15.25541906,170.21,170.12,38.35712079]
[1747595513194,5.87544065,170.2,170.12,38.35712079]
[1747595513577,152.6320422,170.22,170.15,26.0]
[1747595513893,137.37662314,170.22,170.16,26.0]
[1747595514885,137.37662314,170.22,170.17,5.87647646]
[1747595515374,1.6343,170.25,170.17,5.87647646]
[1747595515580,7.50810412,170.25,170.17,5.87647646]
[1747595516616,22.76352318,170.25,170.17,5.87647646]
[1747595517174,143.25010087,170.26,170.17,5.87647646]
[1747595518318,143.25010087,170.26,170.19,26.0]
[1747595518319,137.37662314,170.26,170.19,26.0]
[1747595519120,137.37662314,170.26,170.2,18.64964886]
[1747595519311,137.37662314,170.26,170.21,5.87509547]
[1747595519617,5.87276115,170.28,170.21,5.87509547]
[1747595520014,144.75409976,170.29,170.21,5.87509547]
[1747595520219,143.24899976,170.29,170.21,5.87509547]
[1747595521322,162.62107533,170.33,170.23,5.87440521]
[1747595521651,2.19126264,170.32,170.23,5.87440521]
[1747595522207,23.31801141,170.32,170.23,5.87440521]
[1747595522714,15.25541906,170.3,170.22,31.87472311]
[1747595522919,15.25541906,170.29,170.22,26.0]
[1747595523120,15.25541906,170.3,170.22,26.0]
[1747595523308,5.87233542,170.29,170.22,31.87473185]
[1747595524404,15.25541906,170.29,170.22,26.0]
[1747595524820,15.25541906,170.28,170.21,20.14]
[1747595525605,21.12775448,170.29,170.21,26.01506166]
[1747595527235,15.25541906,170.28,170.21,20.14]
[1747595527730,15.25541906,170.28,170.2,31.87532717]
[1747595528433,5.87302519,170.27,170.2,31.87532717]
[1747595530516,21.12809935,170.28,170.2,31.87532717]
[1747595530834,15.25541906,170.27,170.2,31.87535146]
[1747595531123,35.80980007,170.28,170.2,31.87535146]
[1747595531331,15.25541906,170.27,170.2,31.87535146]
[1747595531641,35.80980007,170.28,170.2,31.87535146]
[1747595533211,35.80980007,170.28,170.2,26.0]
[1747595533414,152.6320422,170.27,170.2,26.0]
[1747595533623,137.37662314,170.27,170.2,31.87534355]
[1747595534818,5.87337013,170.26,170.2,31.87534355]
[1747595536220,5.87337013,170.26,170.2,26.0]
[1747595536410,5.87337013,170.26,170.2,31.87529383]
[1747595537939,143.24974735,170.27,170.2,31.87529383]
[1747595538234,137.37662314,170.27,170.2,31.87529383]
[1747595538540,143.24970035,170.27,170.2,31.87529383]
[1747595539618,143.24970035,170.27,170.17,43.55465526]
[1747595539619,15.25541906,170.23,170.17,20.18]
[1747595539929,5.87509547,170.21,170.14,6.1375]
[1747595540104,5.87509547,170.21,170.15,26.0]
[1747595541224,5.87509547,170.21,170.15,31.87713019]
[1747595542440,5.87509547,170.21,170.15,26.0]
[1747595542812,158.50713767,170.21,170.15,26.0]
[1747595544826,143.25171861,170.21,170.15,26.0]
[1747595545614,158.50713767,170.21,170.15,26.0]
[1747595545818,143.25171861,170.21,170.15,26.0]
[1747595549043,173.19487634,170.21,170.12,27.59903626]
[1747595549343,15.25541906,170.19,170.12,20.1]
[1747595550026,139.04252314,170.2,170.12,20.1]
[1747595550249,15.25541906,170.19,170.12,20.1]
[1747595550756,5.87613115,170.18,170.12,20.1]
[1747595551680,21.13155021,170.18,170.12,20.1]
[1747595551824,21.13155021,170.18,170.09,252.1285]
[1747595552647,35.82187809,170.18,170.09,26.0]
[1747595552821,15.25541906,170.17,170.09,26.0]
[1747595553023,152.6320422,170.16,170.09,26.0]
[1747595553350,152.6320422,170.16,170.07,51.9998353]
[1747595553523,152.6320422,170.16,170.07,25.9998353]
[1747595553721,152.6320422,170.16,170.07,51.9998353]
[1747595553936,5.8771672,170.15,170.07,25.9998353]
[1747595554139,5.8771672,170.15,170.07,51.9998353]
[1747595555019,21.13258626,170.15,170.07,46.12]
[1747595555216,5.8771672,170.15,170.07,46.12]
[1747595556050,35.82550427,170.15,170.07,20.12]
[1747595557443,137.37662314,170.14,170.07,20.12]
[1747595558040,5.8778581,170.13,170.07,20.12]
[1747595569154,21.13327716,170.13,170.07,20.12]
[1747595569454,21.13327716,170.13,170.05,38.13911229]
[1747595569960,15.25541906,170.1,170.02,20.06]
[1747595570135,15.25541906,170.1,170.02,46.06]
[1747595570334,15.25541906,170.11,170.02,46.06]
[1747595570955,5.87889476,170.1,170.02,51.9414031]
[1747595572127,5.87854917,170.11,170.02,51.9414031]
[1747595572355,163.29487935,170.12,170.03,19.82567651]
[1747595573260,163.29487935,170.12,170.06,26.0]
[1747595573557,163.29487935,170.12,170.06,31.88007765]
[1747595575060,163.29487935,170.12,170.06,26.0]
[1747595577348,163.29487935,170.12,170.06,31.88025189]
[1747595579059,143.25487935,170.12,170.06,31.88025189]
[1747595580335,137.37662314,170.12,170.06,31.88025189]
[1747595580659,143.25485876,170.12,170.06,31.88025189]
[1747595581136,143.25485876,170.12,170.06,31.38025189]
[1747595581863,143.25485876,170.12,170.05,18.64964886]
[1747595582163,143.25485876,170.12,170.05,19.82547492]
[1747595582659,137.37662314,170.12,170.05,19.82547492]
[1747595583362,137.37662314,170.12,170.05,45.82547492]
[1747595583758,143.25484567,170.12,170.06,5.88027754]
[1747595583947,137.37662314,170.12,170.06,5.88027754]
[1747595585151,143.25488973,170.12,170.06,5.88027754]
[1747595588271,143.25488973,170.12,170.05,51.70601429]
[1747595588873,158.51030879,170.12,170.05,26.0]
[1747595589267,15.25541906,170.11,170.02,25.94154443]
[1747595589443,137.37662314,170.1,170.02,25.94154443]
[1747595589777,15.25541906,170.04,170.01,8.40245733]
[1747595589949,5.88131506,170.03,170.01,8.40245733]
[1747595590668,15.25541906,170.07,170.01,8.40245733]
[1747595590975,5.87993179,170.07,170.01,8.40245733]
[1747595591142,143.25625543,170.08,170.01,14.28424671]
[1747595591342,158.51167449,170.08,170.01,14.28424671]
[1747595591538,15.25541906,170.06,170.01,8.40245733]
[1747595591961,5.88096918,170.04,170.01,8.40245733]
[1747595592166,137.37662314,170.03,170.01,8.40245733]
[1747595592367,15.25541906,170.02,169.94,8.39868613]
[1747595592566,15.25541906,170.02,169.95,26.0]
[1747595592998,137.37662314,170.03,169.95,26.0]
[1747595593597,5.88096918,170.04,169.97,26.0]
[1747595593893,137.37662314,170.07,170.0,44.64964886]
[1747595594091,1.6318,170.09,170.02,18.64964886]
[1747595594601,20.0,170.1,170.02,18.64964886]
[1747595594888,35.25541906,170.1,170.02,18.64964886]
[1747595595908,4.21374934,170.15,170.07,18.64964886]
[1747595596082,4.21374934,170.15,170.08,26.0]
[1747595596274,4.21374934,170.17,170.08,26.0]
[1747595596475,15.25541906,170.16,170.08,26.0]
[1747595597167,15.25541906,170.16,170.09,5.8792404]
[1747595598079,45.34566541,170.17,170.09,5.8792404]
[1747595599002,15.25541906,170.16,170.09,5.8792404]
[1747595599297,41.13191607,170.17,170.09,5.8792404]
[1747595599806,21.13226575,170.16,170.09,5.8792404]
[1747595599975,15.25541906,170.16,170.09,5.8792404]
[1747595600297,21.13231315,170.16,170.09,5.8792404]
[1747595600783,15.25541906,170.16,170.09,5.8792404]
[1747595600990,41.13192552,170.17,170.09,5.8792404]
[1747595602483,137.37662314,170.16,170.09,5.8792404]
[1747595603195,137.37662314,170.16,170.09,20.5773414]
[1747595604106,137.37662314,170.16,170.09,5.8792404]
[1747595604401,143.25345733,170.16,170.09,5.8792404]
[1747595604601,158.50887639,170.16,170.09,5.8792404]
[1747595606506,158.50887639,170.16,170.08,31.87951221]
[1747595606682,15.25541906,170.14,170.06,53.6694]
[1747595606878,15.25541906,170.14,170.07,5.87986424]
[1747595607911,165.04327639,170.16,170.07,5.87986424]
[1747595608397,137.37662314,170.15,170.07,5.87986424]
[1747595608809,143.25385446,170.15,170.07,5.87986424]
[1747595609806,158.50927352,170.15,170.07,5.87986424]
[1747595612111,143.25385446,170.15,170.07,5.87986424]
[1747595614407,158.50927352,170.15,170.07,5.87986424]
[1747595614609,143.25385446,170.15,170.07,5.87986424]
[1747595617120,137.37662314,170.15,170.07,5.87986424]
[1747595617291,137.37662314,170.15,170.09,26.0]
[1747595619290,137.37662314,170.15,170.1,5.87889476]
[1747595623425,5.87623556,170.18,170.1,5.87889476]
[1747595625333,143.25245792,170.19,170.1,5.87889476]
[1747595627137,137.37662314,170.19,170.11,18.64964886]
[1747595627425,137.37662314,170.19,170.14,26.0]
[1747595627603,137.37662314,170.22,170.15,18.64964886]
[1747595628330,10.08698363,170.27,170.19,18.64964886]
[1747595628912,10.08698363,170.27,170.19,24.52514326]
[1747595629607,10.08698363,170.27,170.19,18.64964886]
[1747595629832,15.25541906,170.26,170.18,19.94]
[1747595630006,15.25541906,170.25,170.18,19.94]
[1747595630207,15.25541906,170.26,170.17,6.59207054]
[1747595631007,20.55800293,170.25,170.17,6.59207054]
[1747595631537,35.81342199,170.25,170.17,6.59207054]
[1747595632439,137.37662314,170.24,170.17,6.59207054]
[1747595633231,5.87440521,170.23,170.17,6.59207054]
[1747595634434,20.56041825,170.23,170.17,6.59207054]
[1747595636224,137.37662314,170.22,170.17,6.59207054]
[1747595636610,5.87509547,170.21,170.17,6.59207054]
[1747595645922,143.25147161,170.22,170.17,6.59207054]
[1747595646335,137.37662314,170.22,170.17,12.46844282]
[1747595646531,5.87337013,170.26,170.18,18.64964886]
[1747595647322,5.87337013,170.26,170.19,26.0]
[1747595647729,143.24970073,170.27,170.19,26.0]
[1747595648351,143.24970073,170.27,170.2,5.87544065]
[1747595649153,137.37662314,170.27,170.2,5.87544065]
[1747595649450,5.87232589,170.3,170.22,26.0]
[1747595650453,5.87232589,170.3,170.23,5.87440521]
[1747595652240,5.87232589,170.3,170.22,31.87466185]
[1747595654455,143.2482817,170.31,170.23,25.69841476]
[1747595654660,137.37662314,170.31,170.23,25.69841476]
[1747595654833,137.37662314,170.31,170.26,26.0]
[1747595655157,5.87131294,170.32,170.26,26.0]
[1747595655532,5.87131294,170.32,170.23,25.69841476]
[1747595655831,5.87131294,170.32,170.26,26.0]
[1747595656155,5.87061171,170.34,170.26,31.8733525]
[1747595656355,5.87061171,170.34,170.27,18.64964886]
[1747595656855,137.37662314,170.35,170.27,18.64964886]
[1747595657441,1.6458,170.37,170.27,18.64964886]
[1747595657646,1.6458,170.37,170.29,44.64964886]
[1747595657948,5.86987931,170.37,170.29,44.64964886]
[1747595658336,5.86987931,170.37,170.3,5.8719906]
[1747595659556,137.37662314,170.38,170.31,19.82378068]
[1747595659855,143.24588515,170.38,170.31,19.82378068]
[1747595660056,137.37662314,170.38,170.31,19.82378068]
[1747595660448,137.37662314,170.38,170.34,26.0]
[1747595660653,5.86829053,170.41,170.34,26.0]
[1747595660851,5.86829053,170.41,170.36,26.0]
[1747595661741,5.86785588,170.42,170.36,26.0]
[1747595666781,5.86785588,170.42,170.36,26.0]
[1747595669785,137.37662314,170.43,170.37,19.82347107]
[1747595670579,137.37662314,170.47,170.37,19.82347107]
[1747595670882,137.37662314,170.47,170.4,26.0]
[1747595671080,137.37662314,170.47,170.37,39.66347107]
[1747595671263,143.24286501,170.47,170.39,44.64964886]
[1747595672771,143.24286501,170.47,170.39,50.5183695]
[1747595678486,157.90820201,170.47,170.39,26.0]
[1747595684095,173.16362107,170.47,170.39,26.0]
[1747595684294,5.86682311,170.45,170.37,45.84]
[1747595684606,20.53388089,170.45,170.35,24.51980141]
[1747595684789,20.53388089,170.45,170.35,50.51980141]
[1747595685101,15.25541906,170.41,170.33,7.9405]
[1747595685284,137.37662314,170.44,170.35,18.64964886]
[1747595685476,137.37662314,170.44,170.36,26.0]
[1747595685675,137.37662314,170.44,170.33,16.73715108]
[1747595685676,15.25541906,170.42,170.33,13.81141389]
[1747595685879,137.37662314,170.44,170.33,13.81141389]
[1747595685880,15.25541906,170.41,170.33,33.50011389]
[1747595686193,15.25541906,170.42,170.33,7.50011389]
[1747595686395,5.86785588,170.42,170.33,33.50011389]
[1747595687005,21.12327494,170.42,170.33,7.50011389]
[1747595687183,35.79291465,170.42,170.33,1.6292]
[1747595687381,15.25541906,170.41,170.32,19.78]
[1747595687586,15.25541906,170.4,170.32,19.78]
[1747595688303,15.25541906,170.39,170.32,19.78]
[1747595688492,5.86923347,170.38,170.32,19.78]
[1747595688809,21.12465253,170.38,170.29,13.64294565]
[1747595688991,21.12465253,170.38,170.29,39.64294565]
[1747595690006,5.86923347,170.38,170.3,19.82381955]
[1747595691212,5.86923347,170.38,170.3,24.52149762]
[1747595691417,5.86923347,170.38,170.3,27.4939553]
[1747595696293,21.12465253,170.38,170.3,5.87184876]
[1747595696820,5.86923347,170.38,170.3,5.87184876]
[1747595698419,21.12465253,170.38,170.29,39.6429218]
[1747595699120,5.86923347,170.38,170.29,39.6429218]
[1747595699329,5.86923347,170.38,170.3,18.64964886]
[1747595700315,21.12465253,170.38,170.29,16.58927321]
[1747595700618,15.25541906,170.37,170.28,5.87266417]
[1747595701509,20.54231716,170.38,170.28,24.52231303]
[1747595701698,35.79773622,170.38,170.28,24.52231303]
[1747595702600,15.25541906,170.37,170.28,5.87266417]
[1747595703519,15.25541906,170.36,170.27,31.87292032]
[1747595705433,5.87026709,170.35,170.27,31.87292032]
[1747595706136,137.37662314,170.37,170.28,18.64964886]
[1747595706837,137.37662314,170.37,170.3,18.64964886]
[1747595707215,143.24626192,170.37,170.28,18.64964886]
[1747595707417,143.24626192,170.37,170.3,18.64964886]
[1747595707620,137.37662314,170.37,170.3,18.64964886]
[1747595708431,143.24623371,170.37,170.3,18.64964886]
[1747595708629,137.37662314,170.37,170.3,18.64964886]
[1747595709506,137.37662314,170.37,170.31,5.87164582]
[1747595709707,143.24630434,170.37,170.31,5.87164582]
[1747595709912,143.24630434,170.37,170.27,30.06258898]
[1747595709913,143.24630434,170.37,170.28,5.87268029]
[1747595710150,158.5017234,170.37,170.28,5.87268029]
[1747595710638,15.25541906,170.36,170.28,5.87268029]
[1747595710934,5.87026709,170.35,170.27,5.87300435]
[1747595713018,15.25541906,170.34,170.26,19.78]
[1747595713232,15.25541906,170.34,170.24,18.64964886]
[1747595713233,15.25541906,170.33,170.24,5.87397783]
[1747595713624,172.3520422,170.34,170.24,5.87397783]
[1747595714449,5.87095637,170.33,170.24,5.87397783]
[1747595718427,35.80376637,170.33,170.23,31.87437081]
[1747595718750,137.37662314,170.32,170.23,31.87437081]
[1747595719133,137.37662314,170.32,170.24,18.64964886]
[1747595719442,33.8343,170.35,170.27,26.0]
[1747595719443,7.53570038,170.35,170.27,26.0]
[1747595719642,5.86999487,170.36,170.27,26.0]
[1747595719826,1.5087,170.39,170.29,1.559]
[1747595720023,7.3776494,170.39,170.3,18.64964886]
[1747595720261,5.8689494,170.39,170.3,18.64964886]
[1747595720464,5.8689494,170.39,170.31,5.87164582]
[1747595721660,15.25541906,170.38,170.3,5.8719906]
[1747595722551,15.25541906,170.37,170.29,5.87227715]
[1747595723662,5.86992251,170.36,170.29,5.87227715]
[1747595723867,21.12534157,170.36,170.28,19.72]
[1747595724149,21.12534157,170.36,170.25,7.43263928]
[1747595724150,15.25541906,170.33,170.25,7.43263928]
[1747595724327,15.25541906,170.33,170.25,5.87363928]
[1747595724528,157.07662314,170.35,170.25,5.87363928]
[1747595724729,15.25541906,170.33,170.25,5.87363928]
[1747595724925,172.3320422,170.35,170.25,24.52328814]
[1747595725125,15.25541906,170.34,170.25,5.87363928]
[1747595725861,5.87095637,170.33,170.25,5.87363928]
[1747595726767,5.87095637,170.33,170.24,51.59396996]
[1747595726768,21.12637543,170.33,170.24,51.59396996]
[1747595726948,15.25541906,170.31,170.24,19.72]
[1747595727149,15.25541906,170.31,170.24,25.59399566]
[1747595727473,152.6320422,170.32,170.24,5.87399566]
[1747595727838,5.87164582,170.31,170.22,5.87475032]
[1747595728228,137.37662314,170.32,170.23,18.64964886]
[1747595729262,143.24792928,170.32,170.24,5.87406015]
[1747595732380,8.1685,170.31,170.22,1.17462875]
[1747595732549,15.25541906,170.23,170.17,11.34434101]
[1747595732741,15.25541906,170.22,170.17,11.34434101]
[1747595732940,26.0,170.2,170.17,11.34434101]
[1747595733175,15.25541906,170.18,170.17,6.59207054]
[1747595733351,15.25541906,170.18,170.16,8.39868613]
[1747595733560,15.25541906,170.17,170.16,8.39868613]
[1747595733743,61.47541906,170.17,170.16,8.39868613]
[1747595734265,63.06851906,170.17,170.16,8.39868613]
[1747595734585,26.0,170.13,170.06,13.99781022]
[1747595734878,15.25541906,170.11,170.06,13.99781022]
[1747595735463,15.25541906,170.12,170.03,5.8812405]
[1747595735638,20.22,170.11,170.03,24.53088936]
[1747595735843,35.47541906,170.11,170.03,18.64964886]
[1747595736258,20.22,170.11,170.03,24.53093712]
[1747595736669,26.09877365,170.11,170.03,24.53093712]
[1747595741043,26.09877365,170.11,170.03,18.64964886]
[1747595741270,26.09877365,170.11,170.03,24.53093553]
[1747595742664,20.22,170.11,170.04,18.64964886]
[1747595742866,26.07751263,170.14,170.05,5.88062334]
[1747595743171,26.07751263,170.14,170.05,18.64964886]
[1747595743871,5.87751263,170.14,170.05,18.64964886]
[1747595744570,137.37662314,170.15,170.07,18.64964886]
[1747595744771,143.25381003,170.15,170.07,18.64964886]
[1747595746074,143.25381003,170.15,170.08,5.87958607]
[1747595747066,137.37662314,170.15,170.08,5.87958607]
[1747595747250,137.37662314,170.15,170.09,18.64964886]
[1747595748174,137.37662314,170.15,170.1,5.87889476]
[1747595748358,5.87647849,170.17,170.1,5.87889476]
[1747595748552,5.87647849,170.17,170.09,18.64964886]
[1747595749055,5.87647849,170.17,170.09,24.52875388]
[1747595749651,26.0,170.14,170.01,8.1521]
[1747595749857,46.12,170.14,170.01,1.9795]
[1747595750043,5.87958607,170.08,170.01,1.9795]
[1747595750355,5.87958607,170.08,170.01,7.86137612]
[1747595750565,5.87929531,170.09,170.01,7.86137612]
[1747595750768,26.37895547,170.1,170.01,7.86137612]
[1747595751073,41.63437453,170.1,170.01,1.9795]
[1747595751654,26.37895547,170.1,170.01,7.86141019]
[1747595752467,26.37895547,170.1,170.01,7.46141019]
[1747595756179,26.37895547,170.1,170.03,5.88131506]
[1747595756773,5.87895547,170.1,170.03,5.88131506]
[1747595757978,5.87895547,170.1,170.02,50.53124905]
[1747595758480,5.87895547,170.1,170.02,26.0]
[1747595759178,5.87895547,170.1,170.02,31.88159863]
[1747595759549,26.0,170.14,170.03,6.3203]
[1747595759749,5.87582744,170.19,170.11,5.87854917]
[1747595759955,30.3062461,170.19,170.08,5.87958607]
[1747595760260,30.3062461,170.19,170.09,19.82514449]
[1747595760461,46.56529215,170.19,170.08,5.87958607]
[1747595760663,24.43041866,170.17,170.08,5.87958607]
[1747595760966,24.43041866,170.17,170.07,53.03986894]
[1747595761168,24.43041866,170.16,170.07,47.16]
[1747595761374,24.43041866,170.16,170.07,53.03984535]